bitfinex-derivatives/quotes_BTCF0:USTF0_20250718
["timestamp","ask_amount","ask_price","bid_price","bid_amount"]
[1752857621025,1.3269494,117780.0,117770.0,0.69641596]
[1752857621826,1.3269494,117780.0,117770.0,0.69841596]
[1752857622027,1.3269494,117780.0,117770.0,0.69941596]
[1752857622825,0.97865984,117780.0,117770.0,0.69941596]
[1752857623427,0.36545984,117780.0,117770.0,0.69941596]
[1752857623628,0.97853984,117780.0,117770.0,0.69941596]
[1752857624526,0.97853984,117780.0,117770.0,0.263365]
[1752857624726,0.97853984,117780.0,117770.0,0.69941596]
[1752857625127,1.33933984,117780.0,117770.0,0.69941596]
[1752857625326,1.33933984,117780.0,117770.0,0.263365]
[1752857625625,1.7753908,117780.0,117770.0,0.003]
[1752857625827,1.7753908,117780.0,117770.0,0.172735]
[1752857626027,1.33933984,117780.0,117770.0,0.172735]
[1752857626227,1.33933984,117780.0,117770.0,0.197405]
[1752857628126,1.33933984,117780.0,117770.0,0.02767]
[1752857628629,1.33933984,117780.0,117770.0,0.197405]
[1752857629231,1.33933984,117780.0,117770.0,0.172735]
[1752857630134,1.33933984,117780.0,117770.0,0.197405]
[1752857630329,1.33933984,117780.0,117770.0,0.217145]
[1752857630631,0.72625984,117780.0,117770.0,0.263365]
[1752857630930,0.36545984,117780.0,117770.0,0.624165]
[1752857631328,1.33921984,117780.0,117770.0,0.263365]
[1752857631631,0.72625984,117780.0,117770.0,0.263365]
[1752857631830,1.33917984,117780.0,117770.0,0.263365]
[1752857632335,0.72625984,117780.0,117770.0,0.263365]
[1752857632526,1.33917984,117780.0,117770.0,0.263365]
[1752857633233,0.72625984,117780.0,117770.0,0.263365]
[1752857633830,1.33913984,117780.0,117770.0,0.263365]
[1752857634834,1.3199762,117780.0,117770.0,0.263365]
[1752857635337,0.7070962,117780.0,117770.0,0.263365]
[1752857635629,1.3198962,117780.0,117770.0,0.263365]
[1752857636933,0.7070962,117780.0,117770.0,0.263365]
[1752857637135,1.3198562,117780.0,117770.0,0.263365]
[1752857637330,0.7070962,117780.0,117770.0,0.263365]
[1752857638026,1.3198562,117780.0,117770.0,0.263365]
[1752857638338,0.7070962,117780.0,117770.0,0.263365]
[1752857638531,1.3198562,117780.0,117770.0,0.263365]
[1752857638835,1.3198162,117780.0,117770.0,0.263365]
[1752857639035,0.7070962,117780.0,117770.0,0.263365]
[1752857639228,0.7070962,117780.0,117770.0,0.232705]
[1752857639626,1.3198162,117780.0,117770.0,0.232705]
[1752857639834,1.3198162,117780.0,117770.0,0.255335]
[1752857640133,1.3198162,117780.0,117770.0,0.263365]
[1752857640442,0.70439,117780.0,117770.0,0.69941596]
[1752857640931,0.8741105,117780.0,117770.0,0.69941596]
[1752857641337,0.8740705,117780.0,117770.0,0.69941596]
[1752857641934,0.70435,117780.0,117770.0,0.69941596]
[1752857642432,0.8740705,117780.0,117770.0,0.263365]
[1752857642737,0.8740305,117780.0,117770.0,0.69941596]
[1752857643235,0.2614305,117780.0,117770.0,0.69941596]
[1752857643436,0.2614305,117780.0,117770.0,0.232705]
[1752857643437,0.8740305,117780.0,117770.0,0.232705]
[1752857644239,0.8740305,117780.0,117770.0,0.264595]
[1752857644436,0.2614305,117780.0,117770.0,0.264595]
[1752857644630,0.8739905,117780.0,117770.0,0.70064596]
[1752857645036,0.8739905,117780.0,117770.0,0.69964596]
[1752857645437,0.8739905,117780.0,117770.0,0.69764596]
[1752857645838,0.8739905,117780.0,117770.0,0.69864596]
[1752857646041,0.8739905,117780.0,117770.0,0.70064596]
[1752857647543,0.2614305,117780.0,117770.0,0.70064596]
[1752857647743,0.70419,117780.0,117770.0,0.70064596]
[1752857648041,0.6556,117780.0,117770.0,1.06144596]
[1752857648340,0.8738405,117780.0,117770.0,1.06144596]
[1752857649242,0.8738405,117780.0,117770.0,1.13774675]
[1752857649539,0.70412,117780.0,117770.0,1.13774675]
[1752857649744,0.04027,117790.0,117780.0,0.2611505]
[1752857649940,1.06568,117800.0,117790.0,0.2045261]
[1752857650140,1.2353717,117800.0,117790.0,0.69718706]
[1752857650443,0.2621717,117800.0,117790.0,0.69718706]
[1752857650943,0.09248,117800.0,117790.0,0.69718706]
[1752857651244,0.2621717,117800.0,117790.0,0.69718706]
[1752857651542,0.2641717,117800.0,117790.0,0.69718706]
[1752857651745,0.8764917,117800.0,117790.0,0.69718706]
[1752857652139,0.8774917,117800.0,117790.0,0.69718706]
[1752857653540,0.2651717,117800.0,117790.0,0.69718706]
[1752857653843,0.003,117800.0,117790.0,1.67030706]
[1752857654845,0.003,117800.0,117790.0,1.74660785]
[1752857658247,0.003,117800.0,117790.0,2.04180785]
[1752857658847,0.003,117800.0,117790.0,2.21159185]
[1752857659145,0.003,117800.0,117790.0,2.64764281]
[1752857659644,0.003,117800.0,117790.0,2.03532281]
[1752857659846,0.003,117800.0,117790.0,2.64736281]
[1752857660042,0.003,117800.0,117790.0,1.59927185]
[1752857660749,0.003,117800.0,117790.0,2.21123185]
[1752857661443,0.02677,117800.0,117790.0,1.42948785]
[1752857661640,0.09548,117800.0,117790.0,2.04140785]
[1752857662746,0.04696,117800.0,117790.0,2.04140785]
[1752857662944,0.003,117800.0,117790.0,2.04140785]
[1752857664650,0.003,117800.0,117790.0,2.04128785]
[1752857664849,0.02677,117800.0,117790.0,2.04128785]
[1752857665358,0.04327,117800.0,117790.0,2.04128785]
[1752857665560,0.04327,117800.0,117790.0,2.04124785]
[1752857665761,0.05468,117800.0,117790.0,2.04124785]
[1752857666559,0.04696,117800.0,117790.0,2.04120785]
[1752857666861,0.003,117800.0,117790.0,2.04120785]
[1752857668559,0.003,117800.0,117790.0,1.42948785]
[1752857668763,0.003,117800.0,117790.0,2.04112785]
[1752857669765,0.003,117800.0,117790.0,1.42948785]
[1752857670065,0.003,117800.0,117790.0,2.04104785]
[1752857670563,0.04327,117800.0,117790.0,2.04104785]
[1752857670866,0.09411,117800.0,117790.0,2.04100785]
[1752857671259,0.2638017,117800.0,117790.0,0.99343689]
[1752857671459,0.2638017,117800.0,117790.0,1.60495689]
[1752857671661,0.2638017,117800.0,117790.0,2.04100785]
[1752857672062,0.003,117800.0,117790.0,2.04100785]
[1752857672661,0.02729,117800.0,117790.0,2.04100785]
[1752857672960,0.04312,117800.0,117790.0,2.04100785]
[1752857673357,0.09332,117800.0,117790.0,2.04100785]
[1752857674770,0.09332,117800.0,117790.0,1.42948785]
[1752857675069,0.09332,117800.0,117790.0,1.60479689]
[1752857675266,0.09332,117800.0,117790.0,2.04084785]
[1752857676066,0.09332,117800.0,117790.0,1.74564785]
[1752857679872,0.09332,117800.0,117790.0,1.13428785]
[1752857680072,0.09332,117800.0,117790.0,1.74544785]
[1752857680272,0.09332,117800.0,117790.0,1.13428785]
[1752857680964,0.09332,117800.0,117790.0,1.74540785]
[1752857682671,0.2630116,117800.0,117790.0,1.74540785]
[1752857682874,0.09332,117800.0,117790.0,1.74540785]
[1752857684274,0.2630116,117800.0,117790.0,1.74540785]
[1752857685272,0.09332,117800.0,117790.0,1.74540785]
[1752857685768,0.2630112,117800.0,117790.0,1.74540785]
[1752857685973,0.2630112,117800.0,117790.0,1.66910706]
[1752857686172,0.09332,117800.0,117790.0,1.66910706]
[1752857687379,0.003,117800.0,117790.0,1.66910706]
[1752857689583,0.3023873,117830.0,117820.0,0.2598323]
[1752857689780,0.06733,117830.0,117820.0,1.30664326]
[1752857690280,0.06733,117830.0,117820.0,1.67599579]
[1752857690782,0.1093293,117840.0,117830.0,0.2042779]
[1752857690972,0.2789628,117840.0,117830.0,0.69586886]
[1752857691172,0.2789628,117840.0,117830.0,1.05666886]
[1752857691685,0.2559728,117840.0,117830.0,1.05666886]
[1752857692381,0.2569728,117840.0,117830.0,1.05666886]
[1752857692982,0.2799628,117840.0,117830.0,1.05666886]
[1752857693684,0.6407628,117840.0,117830.0,0.69586886]
[1752857693885,0.2799628,117840.0,117830.0,0.2598179]
[1752857694084,0.2799628,117840.0,117830.0,0.2598177]
[1752857695182,0.2051377,117830.0,117820.0,0.07540253]
[1752857695387,0.2599677,117830.0,117820.0,0.87890463]
[1752857696489,0.2599677,117830.0,117820.0,0.87990463]
[1752857697884,0.2599677,117830.0,117820.0,0.71124253]
[1752857698185,0.69601866,117830.0,117820.0,0.08432]
[1752857698390,1.66713866,117830.0,117820.0,0.002]
[1752857698588,1.66713866,117830.0,117820.0,0.1953105]
[1752857698789,0.8702877,117830.0,117820.0,0.2618305]
[1752857699390,0.8702877,117830.0,117820.0,0.6226305]
[1752857699584,0.2599677,117830.0,117820.0,1.05868146]
[1752857700289,0.2599677,117830.0,117820.0,0.6226305]
[1752857700491,0.2599677,117830.0,117820.0,0.63128458]
[1752857701891,0.2599677,117830.0,117820.0,0.27048458]
[1752857702192,0.6207677,117830.0,117820.0,0.10082408]
[1752857702488,1.05681866,117830.0,117820.0,0.01033343]
[1752857702893,1.05681866,117830.0,117820.0,0.002]
[1752857703091,0.6207677,117830.0,117820.0,0.1716598]
[1752857703391,0.2599654,117830.0,117820.0,1.06035076]
[1752857704400,0.2599654,117830.0,117820.0,0.6242998]
[1752857704695,0.6207654,117830.0,117820.0,0.09384]
[1752857704894,0.6207654,117830.0,117820.0,0.26461991]
[1752857705094,0.6207654,117830.0,117820.0,0.09496041]
[1752857705296,0.6207654,117830.0,117820.0,0.26461991]
[1752857706394,0.6207654,117830.0,117820.0,0.09496041]
[1752857707296,0.6207654,117830.0,117820.0,0.08657]
[1752857707495,0.6207654,117830.0,117820.0,0.09507614]
[1752857707995,1.05681636,117830.0,117820.0,0.02562]
[1752857708498,1.05681636,117830.0,117820.0,0.06203]
[1752857708695,1.05681636,117830.0,117820.0,0.08657]
[1752857708997,0.2599654,117830.0,117820.0,0.263499]
[1752857709193,0.8698454,117830.0,117820.0,0.263499]
[1752857709898,0.8698454,117830.0,117820.0,0.27206637]
[1752857710500,0.8698454,117830.0,117820.0,0.63286637]
[1752857711894,0.8698454,117830.0,117820.0,1.06891733]
[1752857712196,0.8698454,117830.0,117820.0,0.63286637]
[1752857713294,0.8698454,117830.0,117820.0,1.06891733]
[1752857714501,0.8698454,117830.0,117820.0,0.63286637]
[1752857715396,0.8698454,117830.0,117820.0,0.10240737]
[1752857715597,1.30589636,117830.0,117820.0,0.08657]
[1752857716102,1.66669636,117830.0,117820.0,0.002]
[1752857719106,1.2306454,117830.0,117820.0,0.002]
[1752857719299,1.66669636,117830.0,117820.0,0.002]
[1752857720597,1.2306454,117830.0,117820.0,0.002]
[1752857720800,1.30541636,117830.0,117820.0,0.002]
[1752857721305,1.30541636,117830.0,117820.0,0.02562]
[1752857721500,1.66621636,117830.0,117820.0,0.02562]
[1752857721806,1.66621636,117830.0,117820.0,0.002]
[1752857722505,1.66621636,117830.0,117820.0,0.1716589]
[1752857722699,1.66621636,117830.0,117820.0,0.002]
[1752857725805,1.30541636,117830.0,117820.0,0.002]
[1752857726100,1.66621636,117830.0,117820.0,0.002]
[1752857729714,1.66721636,117830.0,117820.0,0.001]
[1752857730019,0.2587228,117810.0,117800.0,1.11530522]
[1752857730215,0.69813,117810.0,117800.0,1.11530522]
[1752857730423,0.69813,117810.0,117800.0,1.15171522]
[1752857730718,0.67552,117810.0,117800.0,1.15171522]
[1752857731219,0.8451927,117810.0,117800.0,1.15171522]
[1752857731415,0.8697727,117810.0,117800.0,1.15271522]
[1752857731921,0.8697727,117810.0,117800.0,1.07087182]
[1752857732126,0.8697727,117810.0,117800.0,1.06987182]
[1752857732420,0.8697727,117810.0,117800.0,1.07287182]
[1752857732624,0.7001,117810.0,117800.0,1.07287182]
[1752857733023,0.7001,117810.0,117800.0,1.14920099]
[1752857733421,0.8697726,117810.0,117800.0,1.14920099]
[1752857735325,0.7001,117810.0,117800.0,1.14920099]
[1752857735523,0.09102,117810.0,117800.0,1.14920099]
[1752857737628,0.09102,117810.0,117800.0,1.07287182]
[1752857738321,0.2606925,117810.0,117800.0,1.07287182]
[1752857738527,0.09102,117810.0,117800.0,1.07287182]
[1752857739020,0.0755,117820.0,117810.0,0.2580025]
[1752857739220,0.05092,117820.0,117810.0,1.05485346]
[1752857739419,0.04347,117820.0,117810.0,1.05485346]
[1752857739621,0.3463551,117840.0,117830.0,0.2056437]
[1752857739826,0.36655111,117840.0,117830.0,0.2579737]
[1752857741328,0.36755111,117840.0,117830.0,0.2579737]
[1752857742224,0.02584601,117840.0,117830.0,1.05482466]
[1752857742620,0.19547531,117840.0,117830.0,1.05482466]
[1752857742824,0.1752793,117840.0,117830.0,1.05482466]
[1752857743019,0.03741,117840.0,117830.0,1.05482466]
[1752857743220,0.02219536,117840.0,117830.0,1.66334466]
[1752857743630,0.002,117840.0,117830.0,1.66334466]
[1752857745232,0.002,117840.0,117830.0,1.2272937]
[1752857745433,0.002,117840.0,117830.0,1.66334466]
[1752857748339,0.9278841,117870.0,117860.0,0.01585]
[1752857748640,0.97468371,117870.0,117860.0,0.2579305]
[1752857749838,0.98268371,117870.0,117860.0,0.2579305]
[1752857750237,0.9624941,117870.0,117860.0,0.2579305]
[1752857750439,0.9624941,117870.0,117860.0,0.2665744]
[1752857751943,0.9200951,117870.0,117860.0,0.2665744]
[1752857752642,0.0999,117870.0,117860.0,0.6273744]
[1752857752831,0.05147,117870.0,117860.0,1.06342536]
[1752857753033,0.008,117870.0,117860.0,1.06342536]
[1752857753233,0.05634,117890.0,117860.0,1.06351286]
[1752857753439,0.05092,117890.0,117880.0,0.6187017]
[1752857753636,0.05092,117890.0,117880.0,1.05475266]
[1752857754741,0.2204774,117890.0,117880.0,1.05675266]
[1752857755046,0.2614574,117890.0,117880.0,1.05975266]
[1752857755246,0.0919,117890.0,117880.0,1.05975266]
[1752857755648,0.0919,117890.0,117880.0,1.12910372]
[1752857756149,0.06732,117890.0,117880.0,1.12910372]
[1752857756738,0.2368774,117890.0,117880.0,1.12910372]
[1752857757245,0.3387774,117900.0,117890.0,0.1731674]
[1752857757447,0.3462274,117900.0,117890.0,0.2578874]
[1752857758046,0.78227836,117900.0,117890.0,0.08133]
[1752857758351,0.78227836,117900.0,117890.0,0.08433]
[1752857758649,0.78227836,117900.0,117890.0,0.06166]
[1752857759039,0.78227836,117900.0,117890.0,0.06566]
[1752857759747,1.14307836,117900.0,117890.0,0.007]
[1752857761244,0.7070274,117900.0,117890.0,0.007]
[1752857761449,1.14307836,117900.0,117890.0,0.007]
[1752857763148,0.52795096,117900.0,117890.0,0.2609274]
[1752857763350,0.6993,117900.0,117890.0,1.06467836]
[1752857763646,0.00365,117900.0,117890.0,1.06467836]
[1752857763848,0.107398,117910.0,117900.0,0.2053631]
[1752857764044,0.082948,117910.0,117900.0,1.05766406]
[1752857765051,0.082948,117910.0,117900.0,1.06066406]
[1752857765250,0.107398,117910.0,117900.0,1.06066406]
[1752857765453,0.107398,117910.0,117900.0,0.6246131]
[1752857765649,0.107398,117910.0,117900.0,1.06066406]
[1752857766845,0.018758,117910.0,117900.0,1.06066406]
[1752857767452,0.1882866,117910.0,117900.0,0.6246131]
[1752857767754,0.2769266,117910.0,117900.0,0.6246131]
[1752857771256,0.2769266,117910.0,117900.0,0.2638131]
[1752857771452,0.2769266,117910.0,117900.0,0.09427]
[1752857771658,0.2769266,117910.0,117900.0,0.08737]
[1752857772156,0.71297756,117910.0,117900.0,0.08737]
[1752857772552,1.07377756,117910.0,117900.0,0.003]
[1752857772756,1.07377756,117910.0,117900.0,0.2569131]
[1752857772757,0.71297756,117910.0,117900.0,0.2569131]
[1752857773056,0.2769266,117910.0,117900.0,0.2569131]
[1752857773758,0.2769266,117910.0,117900.0,0.08737]
[1752857774158,1.09384411,117910.0,117900.0,0.003]
[1752857775254,1.32347611,117910.0,117900.0,1e-07]
[1752857775560,0.2581975,117890.0,117880.0,0.02406]
[1752857775756,0.8650375,117890.0,117880.0,0.05988]
[1752857776060,0.8650375,117890.0,117880.0,0.08437]
[1752857776961,0.8650375,117890.0,117880.0,0.2579419]
[1752857777158,0.8650375,117890.0,117880.0,0.08837]
[1752857777359,0.8650375,117890.0,117880.0,0.09137]
[1752857777658,0.8650375,117890.0,117880.0,0.2609419]
[1752857777861,0.8650375,117890.0,117880.0,0.09137]
[1752857778059,0.8650375,117890.0,117880.0,0.06688]
[1752857778560,0.8650375,117890.0,117880.0,0.2678419]
[1752857780960,0.8650375,117890.0,117880.0,0.6286419]
[1752857781160,0.8650375,117890.0,117880.0,0.2678419]
[1752857782059,0.8650375,117890.0,117880.0,0.6286419]
[1752857783161,0.88520502,117890.0,117880.0,0.6286419]
[1752857783360,0.88520502,117890.0,117880.0,1.06469286]
[1752857783864,0.69548,117890.0,117880.0,1.06469286]
[1752857784164,0.8650374,117890.0,117880.0,1.06469286]
[1752857784364,0.69548,117890.0,117880.0,1.06469286]
[1752857784567,0.08864,117890.0,117880.0,1.06469286]
[1752857784866,0.2524796,117910.0,117900.0,0.260813]
[1752857785059,0.87919928,117910.0,117900.0,1.05766396]
[1752857785259,0.90364928,117910.0,117900.0,1.05766396]
[1752857785462,0.90364928,117910.0,117900.0,0.621613]
[1752857785664,0.90364928,117910.0,117900.0,0.260813]
[1752857786068,0.90364928,117910.0,117900.0,0.261813]
[1752857789466,1.33970024,117910.0,117900.0,0.02506]
[1752857789661,1.33970024,117910.0,117900.0,0.001]
[1752857791963,1.81050024,117910.0,117900.0,0.001]
[1752857792360,1.98013224,117910.0,117900.0,0.001]
[1752857795669,1.81050024,117910.0,117900.0,0.001]
[1752857804668,1.81095617,117910.0,117900.0,0.001]
[1752857808075,0.1695574,117890.0,117880.0,0.2995628]
[1752857808282,0.8663974,117890.0,117880.0,0.2995628]
[1752857809782,0.8663974,117890.0,117880.0,0.3035628]
[1752857809969,0.8663974,117890.0,117880.0,0.26117]
[1752857810378,0.8663974,117890.0,117880.0,0.26317]
[1752857814483,0.8663974,117890.0,117880.0,0.33949917]
[1752857819390,0.8663974,117890.0,117880.0,0.26317]
[1752857819990,0.8663974,117890.0,117880.0,0.23363]
[1752857820189,0.8663974,117890.0,117880.0,0.14039917]
[1752857820390,1.30244836,117890.0,117880.0,0.006]
[1752857820589,1.05748836,117890.0,117880.0,0.006]
[1752857820785,0.2606064,117870.0,117860.0,0.02287]
[1752857820985,0.2614608,117860.0,117850.0,0.54888111]
[1752857821291,0.82665971,117860.0,117850.0,0.18316225]
[1752857821488,0.2053352,117850.0,117840.0,0.06907114]
[1752857821691,0.2053496,117840.0,117830.0,0.17547159]
[1752857821888,0.71601168,117840.0,117830.0,0.02287]
[1752857822192,0.254274,117830.0,117820.0,0.40180844]
[1752857822384,0.865904,117830.0,117820.0,0.37308478]
[1752857822582,1.30195496,117830.0,117820.0,0.37308478]
[1752857822791,1.30195496,117830.0,117820.0,0.17191156]
[1752857822982,1.30195496,117830.0,117820.0,0.34156996]
[1752857823182,1.30195496,117830.0,117820.0,0.36452996]
[1752857823386,1.30195496,117830.0,117820.0,0.36652996]
[1752857823583,0.865904,117830.0,117820.0,0.37513323]
[1752857823786,0.865904,117830.0,117820.0,0.36652996]
[1752857823984,0.260824,117830.0,117820.0,0.80258092]
[1752857824190,0.859354,117830.0,117820.0,0.80258092]
[1752857824388,0.865904,117830.0,117820.0,0.36752996]
[1752857824790,1.30195496,117830.0,117820.0,0.15939156]
[1752857825390,1.28624496,117830.0,117820.0,0.03624045]
[1752857825593,1.28624496,117830.0,117820.0,0.00663045]
[1752857825794,1.28624496,117830.0,117820.0,0.00307045]
[1752857825994,1.28624496,117830.0,117820.0,0.003]
[1752857826885,0.865904,117830.0,117820.0,0.1726584]
[1752857827085,1.30195496,117830.0,117820.0,0.2022684]
[1752857827289,1.30195496,117830.0,117820.0,0.03617]
[1752857827485,1.30195496,117830.0,117820.0,0.2058284]
[1752857827696,1.30195496,117830.0,117820.0,0.03617]
[1752857828096,1.30195496,117830.0,117820.0,0.2058283]
[1752857828296,1.30195496,117830.0,117820.0,0.03617]
[1752857828493,0.69687496,117830.0,117820.0,0.00656]
[1752857828686,1.30191496,117830.0,117820.0,0.2376783]
[1752857828891,0.865864,117830.0,117820.0,0.2606383]
[1752857829087,0.09118,117830.0,117820.0,0.2606383]
[1752857829296,0.69618,117830.0,117820.0,0.69668926]
[1752857829495,0.8658239,117830.0,117820.0,0.2606383]
[1752857830693,0.8658239,117830.0,117820.0,0.003]
[1752857830694,1.30187486,117830.0,117820.0,0.003]
[1752857831096,1.28616486,117830.0,117820.0,0.003]
[1752857839311,0.8658239,117830.0,117820.0,0.003]
[1752857839508,1.30187486,117830.0,117820.0,0.003]
[1752857843412,0.8654639,117830.0,117820.0,0.003]
[1752857843610,0.8654639,117830.0,117820.0,0.09098]
[1752857843810,0.8654639,117830.0,117820.0,0.2606384]
[1752857844006,0.8654639,117830.0,117820.0,0.69668936]
[1752857844007,0.69582,117830.0,117820.0,0.69668936]
[1752857844207,0.858914,117830.0,117820.0,0.69668936]
[1752857844403,0.04032,117830.0,117820.0,0.69668936]
[1752857844711,0.87805072,117840.0,117830.0,0.257624]
[1752857845214,0.88460072,117840.0,117830.0,0.257624]
[1752857845720,1.32065168,117840.0,117830.0,0.06502]
[1752857845912,1.32065168,117840.0,117830.0,0.06602]
[1752857846112,1.32065168,117840.0,117830.0,0.06702]
[1752857846308,1.32065168,117840.0,117830.0,0.236664]
[1752857846716,1.32065168,117840.0,117830.0,0.06702]
[1752857847713,1.32065168,117840.0,117830.0,0.2366639]
[1752857848016,1.32065168,117840.0,117830.0,0.06702]
[1752857848417,1.32065168,117840.0,117830.0,0.002]
[1752857849417,1.30150056,117840.0,117830.0,0.002]
[1752857850813,0.0226,117830.0,117820.0,0.02961]
[1752857851015,0.2579227,117810.0,117800.0,0.09821598]
[1752857851215,1.29833366,117810.0,117800.0,0.08953]
[1752857851616,1.29833366,117810.0,117800.0,0.06549]
[1752857852220,1.29833366,117810.0,117800.0,0.2401771]
[1752857852616,0.8622827,117810.0,117800.0,0.27285873]
[1752857852820,0.8622827,117810.0,117800.0,0.27585873]
[1752857855328,0.7739927,117810.0,117800.0,0.71190969]
[1752857855521,0.7970527,117810.0,117800.0,0.71190969]
[1752857855822,0.8622427,117810.0,117800.0,0.71190969]
[1752857856121,0.8622427,117810.0,117800.0,0.27585873]
[1752857856316,1.29829366,117810.0,117800.0,0.03585]
[1752857856519,1.42720498,117810.0,117800.0,0.008]
[1752857856721,1.42720498,117810.0,117780.0,0.37101391]
[1752857856722,0.2579515,117790.0,117780.0,0.07581391]
[1752857856918,0.205826,117780.0,117770.0,0.50203019]
[1752857857118,0.257966,117780.0,117770.0,0.41993071]
[1752857858219,0.08177,117780.0,117770.0,0.85598167]
[1752857858425,0.03939,117780.0,117770.0,0.85598167]
[1752857858620,0.02306,117780.0,117770.0,0.86460742]
[1752857859125,0.1927759,117780.0,117770.0,0.86460742]
[1752857859325,0.1937759,117780.0,117770.0,0.86460742]
[1752857859525,0.2524859,117780.0,117770.0,0.86460742]
[1752857859926,0.2524859,117780.0,117770.0,0.86560742]
[1752857860426,0.2524859,117780.0,117770.0,0.78979351]
[1752857861029,0.2524859,117780.0,117770.0,0.35374255]
[1752857861525,0.2589659,117780.0,117770.0,0.35374255]
[1752857862129,0.2589659,117780.0,117770.0,0.26888615]
[1752857863029,0.76992863,117780.0,117770.0,0.26888615]
[1752857863329,0.2589659,117780.0,117770.0,0.26888615]
[1752857865230,0.76992863,117780.0,117770.0,0.001]
[1752857865732,0.78912345,117780.0,117770.0,0.1707311]
[1752857867824,0.78912345,117780.0,117770.0,0.001]
[1752857868229,0.82912345,117780.0,117770.0,0.001]
[1752857871630,0.06519,117750.0,117740.0,0.3527441]
[1752857871828,0.8619299,117750.0,117740.0,0.3527441]
[1752857872024,0.8619299,117750.0,117740.0,0.2678599]
[1752857872636,0.2580243,117740.0,117730.0,0.30184768]
[1752857874136,0.08177,117740.0,117730.0,0.30184768]
[1752857874732,0.08177,117740.0,117730.0,0.31453628]
[1752857874938,0.08177,117740.0,117730.0,0.31853628]
[1752857875138,0.2515447,117740.0,117730.0,0.31853628]
[1752857877136,0.2124747,117740.0,117730.0,0.31853628]
[1752857877339,0.03939,117740.0,117730.0,0.31853628]
[1752857877539,0.2091648,117740.0,117730.0,0.31853628]
[1752857878138,0.1861048,117740.0,117730.0,0.8296184]
[1752857878339,0.9466685,117750.0,117740.0,0.2527851]
[1752857878540,0.9466685,117750.0,117740.0,0.2593051]
[1752857878938,0.3364285,117750.0,117740.0,0.2593051]
[1752857879133,0.9401485,117750.0,117740.0,0.2593051]
[1752857879338,0.9466285,117750.0,117740.0,0.08953]
[1752857879636,0.9466285,117750.0,117740.0,0.2372651]
[1752857879841,0.9466285,117750.0,117740.0,0.2613051]
[1752857880337,0.9466285,117750.0,117740.0,0.09153]
[1752857880541,0.9466285,117750.0,117740.0,0.06749]
[1752857880741,0.9466285,117750.0,117740.0,0.06949]
[1752857880943,0.9466285,117750.0,117740.0,0.2392651]
[1752857881349,0.9466285,117750.0,117740.0,0.2620451]
[1752857882036,0.9466285,117750.0,117740.0,0.2392651]
[1752857882242,1.45759123,117750.0,117740.0,0.2392651]
[1752857882544,0.9466285,117750.0,117740.0,0.2620451]
[1752857883849,1.38293062,117750.0,117740.0,0.2620451]
[1752857884447,1.38293062,117750.0,117740.0,0.2620452]
[1752857884849,1.38293062,117750.0,117740.0,0.004]
[1752857886637,0.1935552,117740.0,117730.0,0.00021227]
[1752857886839,0.71326028,117740.0,117730.0,0.00011939]
[1752857887443,0.84326028,117740.0,117730.0,0.00011939]
[1752857888047,0.84426028,117740.0,117730.0,0.00011939]
[1752857888750,0.85276225,117740.0,117730.0,0.00011939]
[1752857888948,0.87331019,117740.0,117730.0,0.00011939]
[1752857889951,0.73480822,117740.0,117730.0,0.00011939]
[1752857891051,0.73580822,117740.0,117730.0,0.00011939]
[1752857891653,0.75580822,117740.0,117730.0,0.00011939]
[1752857892148,0.2515685,117710.0,117700.0,0.3432203]
[1752857892349,1.29829062,117710.0,117700.0,0.2583041]
[1752857892744,1.29829062,117710.0,117700.0,0.08848]
[1752857892951,1.29829062,117710.0,117700.0,0.0657]
[1752857893152,0.8619885,117710.0,117700.0,0.24390325]
[1752857893354,1.29829062,117710.0,117700.0,0.2355329]
[1752857893552,1.29829062,117710.0,117700.0,0.2375329]
[1752857894252,0.8619885,117710.0,117700.0,0.2623129]
[1752857895158,0.8619885,117710.0,117700.0,0.27062195]
[1752857895452,0.01556,117710.0,117700.0,0.70692407]
[1752857895658,0.8600037,117720.0,117710.0,0.2582985]
[1752857895848,0.8600037,117720.0,117710.0,0.69460062]
[1752857896053,0.8600037,117720.0,117710.0,0.2582985]
[1752857896858,0.8668237,117720.0,117710.0,0.2592985]
[1752857897749,0.8668237,117720.0,117710.0,0.2602985]
[1752857898556,1.37835986,117720.0,117710.0,0.1820485]
[1752857898756,1.37835986,117720.0,117710.0,0.1718185]
[1752857898956,0.8668237,117720.0,117710.0,0.002]
[1752857899157,1.37835986,117720.0,117710.0,0.002]
[1752857899357,1.39890072,117720.0,117710.0,0.002]
[1752857899555,0.79046072,117720.0,117710.0,0.002]
[1752857899756,1.39882072,117720.0,117710.0,0.002]
[1752857900161,1.39882072,117720.0,117710.0,0.1718186]
[1752857900662,0.93383117,117720.0,117710.0,0.001]
[1752857900957,0.2515686,117710.0,117700.0,0.5622328]
[1752857901161,0.2583886,117710.0,117700.0,0.3924028]
[1752857901762,0.2583886,117710.0,117700.0,0.5622358]
[1752857902167,0.2583886,117710.0,117700.0,0.3924028]
[1752857902664,0.2583886,117710.0,117700.0,0.5622358]
[1752857903664,0.2583886,117710.0,117700.0,0.3924028]
[1752857903865,0.2583886,117710.0,117700.0,0.5622357]
[1752857904061,0.2583886,117710.0,117700.0,0.2690357]
[1752857904361,0.01556,117710.0,117700.0,0.78057186]
[1752857904563,1.01163757,117720.0,117710.0,0.2582985]
[1752857904762,1.01845757,117720.0,117710.0,0.2582985]
[1752857904961,1.03934383,117720.0,117710.0,0.2582985]
[1752857905567,1.03934383,117720.0,117710.0,0.08848]
[1752857905867,0.2583885,117710.0,117700.0,0.3007594]
[1752857906067,0.2583885,117710.0,117700.0,0.2583017]
[1752857906265,0.76992466,117710.0,117700.0,0.0657]
[1752857906570,0.76992466,117710.0,117700.0,0.2355329]
[1752857906965,0.76992466,117710.0,117700.0,0.0657]
[1752857907161,0.2583885,117710.0,117700.0,0.0667]
[1752857907365,0.76992466,117710.0,117700.0,0.0667]
[1752857907564,0.76992466,117710.0,117700.0,0.03498]
[1752857908665,0.76992466,117710.0,117700.0,0.00548]
[1752857908869,0.76992466,117710.0,117700.0,0.002]
[1752857909268,0.77857361,117710.0,117700.0,0.002]
[1752857910368,0.76992466,117710.0,117700.0,0.002]
[1752857916477,0.03517,117690.0,117670.0,0.1066888]
[1752857916668,0.03517,117690.0,117670.0,0.06579]
[1752857916669,1.37809796,117680.0,117670.0,0.06579]
[1752857917071,0.1698763,117670.0,117660.0,0.0237]
[1752857917271,0.1698763,117670.0,117660.0,0.08949]
[1752857917272,0.71658246,117670.0,117660.0,0.08949]
[1752857917475,0.77183246,117670.0,117660.0,0.08949]
[1752857917972,0.77183246,117670.0,117660.0,0.09797734]